bitfinex-derivatives/quotes_BNBF0:USTF0_20251219
["timestamp","ask_amount","ask_price","bid_price","bid_amount"]
[1766152096487,1.16595453,848.49,847.2,0.87852624]
[1766152096687,1.16595453,848.48,847.2,0.87852624]
[1766152096884,1.16595453,848.47,847.2,0.87852624]
[1766152097183,1.16595453,848.46,847.2,0.87852624]
[1766152097389,1.16595453,848.45,847.2,0.87852624]
[1766152097684,1.16595453,848.44,847.2,0.87852624]
[1766152097886,1.16595453,848.43,847.2,0.87852624]
[1766152098086,1.16595453,848.42,847.2,0.87852624]
[1766152098282,1.16595453,848.41,847.19,0.87852624]
[1766152098487,1.16595453,848.4,847.19,0.87852624]
[1766152098686,1.16595453,848.39,847.19,0.87852624]
[1766152098886,1.16595453,848.38,847.19,0.87852624]
[1766152099088,1.16595453,848.37,847.19,0.87852624]
[1766152099284,1.16595453,848.36,847.19,0.87852624]
[1766152099489,0.20512639,848.54,847.19,0.87852624]
[1766152099686,1.16569899,848.53,847.19,0.87852624]
[1766152099882,1.16569899,848.52,847.19,0.87852624]
[1766152100084,1.16569899,848.51,847.19,0.87852624]
[1766152100289,1.16569899,848.5,847.19,0.87852624]
[1766152100488,1.16569899,848.49,847.19,0.87852624]
[1766152100688,1.16569899,848.48,847.19,0.87852624]
[1766152100886,1.16569899,848.47,847.19,0.87852624]
[1766152101087,1.16569899,848.46,847.19,0.87852624]
[1766152101390,1.16569899,848.45,847.19,0.87852624]
[1766152101591,1.16569899,848.44,847.19,0.87852624]
[1766152101791,1.16569899,848.43,847.19,0.87852624]
[1766152102090,1.16569899,848.42,847.19,0.87852624]
[1766152102388,1.16569899,848.41,847.19,0.87852624]
[1766152102587,1.16569899,848.4,847.19,0.87852624]
[1766152102790,1.16569899,848.39,847.19,0.87852624]
[1766152102990,1.16569899,848.38,847.19,0.87852624]
[1766152103192,1.16569899,848.37,847.19,0.87852624]
[1766152103391,1.16569899,848.36,847.19,0.87852624]
[1766152103688,0.20512639,848.54,847.19,0.87852624]
[1766152103893,1.16671123,848.53,847.19,0.87852624]
[1766152104093,1.16671123,848.52,847.19,0.87852624]
[1766152104295,1.16671123,848.51,847.19,0.87852624]
[1766152104494,1.16671123,848.5,847.19,0.87852624]
[1766152104791,1.16671123,848.49,847.19,0.87852624]
[1766152105090,1.16671123,848.48,847.19,0.87852624]
[1766152105294,1.16671123,848.47,847.19,0.87852624]
[1766152105494,1.16671123,848.46,847.19,0.87852624]
[1766152105688,1.16671123,848.45,847.19,0.87852624]
[1766152105889,1.16671123,848.44,847.19,0.87852624]
[1766152106193,1.16671123,848.43,847.19,0.87852624]
[1766152106493,1.16671123,848.42,847.19,0.87852624]
[1766152106691,1.16671123,848.41,847.19,0.87852624]
[1766152106892,1.16671123,848.4,847.19,0.87852624]
[1766152107090,1.16671123,848.39,847.19,0.87852624]
[1766152107294,1.16671123,848.38,847.19,0.87852624]
[1766152107496,1.16671123,848.37,847.19,0.87852624]
[1766152107690,1.16671123,848.36,847.19,0.87852624]
[1766152107891,0.20512639,848.54,847.19,0.87852624]
[1766152108095,1.16673997,848.53,847.19,0.87852624]
[1766152108396,1.16673997,848.52,847.19,0.87852624]
[1766152108598,1.16673997,848.51,847.19,0.87852624]
[1766152108798,1.16673997,848.5,847.19,0.87852624]
[1766152108995,1.16673997,848.49,847.19,0.87852624]
[1766152109199,1.16673997,848.48,847.19,0.87852624]
[1766152109395,1.16673997,848.47,847.19,0.87852624]
[1766152109599,1.16673997,848.46,847.19,0.87852624]
[1766152109899,1.16673997,848.45,847.19,0.87852624]
[1766152110101,1.16673997,848.44,847.14,0.87852624]
[1766152110394,1.16673997,848.43,847.08,0.87852624]
[1766152110599,1.16673997,848.42,847.08,0.87852624]
[1766152110798,1.16673997,848.41,847.08,0.87852624]
[1766152110999,1.16673997,848.4,847.08,0.87852624]
[1766152111300,1.16673997,848.39,847.08,0.87852624]
[1766152111499,1.16673997,848.38,847.08,0.87852624]
[1766152111799,1.16673997,848.37,847.08,0.87852624]
[1766152111996,1.16673997,848.36,847.08,0.87852624]
[1766152112196,1.16673997,848.35,847.08,0.87852624]
[1766152112400,1.16673997,848.34,847.08,0.87852624]
[1766152112603,1.16673997,848.33,847.08,0.87852624]
[1766152112801,1.16673997,848.32,847.08,0.87852624]
[1766152113002,1.16673997,848.31,847.08,0.87852624]
[1766152113202,1.16673997,848.3,847.08,0.87852624]
[1766152113400,1.16673997,848.29,847.08,0.87852624]
[1766152113598,1.16673997,848.28,847.08,0.87852624]
[1766152113800,1.16673997,848.27,847.08,0.87852624]
[1766152114000,1.17961282,848.48,847.08,0.87852624]
[1766152114001,1.16673997,848.26,847.08,0.87852624]
[1766152114198,1.16673997,848.25,847.08,0.87852624]
[1766152114502,1.17961282,848.48,847.08,0.87852624]
[1766152114702,1.16693979,848.47,847.08,0.87852624]
[1766152114900,1.16693979,848.46,847.08,0.87852624]
[1766152115100,1.16693979,848.45,847.08,0.87852624]
[1766152115300,1.16693979,848.44,847.08,0.87852624]
[1766152115500,1.16693979,848.43,847.08,0.87852624]
[1766152115804,1.16693979,848.42,847.08,0.87852624]
[1766152116101,1.16693979,848.41,847.08,0.87852624]
[1766152116303,1.16693979,848.4,847.08,0.87852624]
[1766152116499,1.16693979,848.39,847.08,0.87852624]
[1766152116698,1.16693979,848.38,847.08,0.87852624]
[1766152116899,1.16693979,848.37,847.08,0.87852624]
[1766152117099,1.17961282,848.47,847.08,0.87852624]
[1766152117100,1.16693979,848.36,847.08,0.87852624]
[1766152117405,1.16693979,848.36,846.93,1.17500927]
[1766152117406,1.16693979,848.35,847.09,0.87852624]
[1766152117606,1.16693979,848.34,847.09,0.87852624]
[1766152117802,1.17961282,848.47,847.09,0.87852624]
[1766152117803,1.16693979,848.33,847.09,0.87852624]
[1766152118006,1.16693979,848.32,847.09,0.87852624]
[1766152118202,1.16693979,848.31,846.93,1.17500927]
[1766152118506,1.16693979,848.3,847.09,0.8764984]
[1766152118802,1.16693979,848.29,847.09,0.8764984]
[1766152119005,1.16693979,848.28,847.09,0.8764984]
[1766152119205,1.16693979,848.27,847.09,0.8764984]
[1766152119406,1.16693979,848.26,847.09,0.8764984]
[1766152119705,1.16693979,848.25,847.09,0.8764984]
[1766152119901,1.16693979,848.24,847.09,0.8764984]
[1766152120203,1.1674793,848.23,847.09,0.8764984]
[1766152120406,1.1674793,848.23,846.94,1.17500927]
[1766152120407,1.17961282,848.46,847.1,0.8764984]
[1766152120606,1.16746901,848.45,847.1,0.8764984]
[1766152120807,1.16746901,848.44,847.1,0.8764984]
[1766152121107,1.16746901,848.43,847.1,0.8764984]
[1766152121306,1.16746901,848.42,847.1,0.8764984]
[1766152121510,1.16746901,848.41,847.1,0.8764984]
[1766152121707,1.16746901,848.4,847.1,0.8764984]
[1766152122003,1.16746901,848.39,847.1,0.8764984]
[1766152122205,1.16746901,848.38,847.1,0.8764984]
[1766152122503,1.16746901,848.37,847.11,0.8764984]
[1766152122708,1.16746901,848.36,847.11,0.8764984]
[1766152123008,1.16746901,848.35,847.11,0.8764984]
[1766152123208,1.16746901,848.34,847.11,0.8764984]
[1766152123409,1.16746901,848.33,847.12,0.8764984]
[1766152123708,1.16746901,848.32,847.12,0.8764984]
[1766152124007,1.16746901,848.31,847.12,0.8764984]
[1766152124204,1.16746901,848.3,847.12,0.8764984]
[1766152124508,1.16746901,848.29,847.13,0.8764984]
[1766152124808,1.16746901,848.28,847.13,0.8764984]
[1766152125008,1.16746901,848.27,847.13,0.8764984]
[1766152125208,1.16746901,848.26,847.13,0.8764984]
[1766152125402,1.16746901,848.25,847.14,0.8764984]
[1766152125607,1.16746901,848.24,847.14,0.8764984]
[1766152125806,1.16746901,848.23,847.14,0.8764984]
[1766152126005,1.16746901,848.22,847.14,0.8764984]
[1766152126209,1.16746901,848.21,847.14,0.8764984]
[1766152126408,1.16746901,848.2,847.15,0.8764984]
[1766152126611,1.16746901,848.19,847.15,0.8764984]
[1766152126910,1.16746901,848.18,847.15,0.8764984]
[1766152127110,1.16911061,848.17,847.15,0.8764984]
[1766152127308,1.17961282,848.4,847.16,0.8764984]
[1766152127508,1.16911492,848.39,847.16,0.8764984]
[1766152127707,1.16911492,848.38,847.16,0.8764984]
[1766152127906,1.16911492,848.37,847.16,0.8764984]
[1766152128106,1.16911492,848.36,847.17,0.8764984]
[1766152128308,1.16911492,848.35,847.26,0.8764984]
[1766152128608,1.16911492,848.34,847.29,0.8764984]
[1766152128812,1.16911492,848.33,847.29,0.8764984]
[1766152129006,1.16911492,848.32,847.29,0.8764984]
[1766152129211,1.16911492,848.31,847.29,0.8764984]
[1766152129409,1.16911492,848.3,847.3,0.8764984]
[1766152129612,1.16911492,848.29,847.3,0.8764984]
[1766152129810,1.16911492,848.28,847.3,0.8764984]
[1766152130109,1.16911492,848.27,847.3,0.8764984]
[1766152130312,1.16911492,848.26,847.32,0.8764984]
[1766152130513,1.16911492,848.25,847.32,0.8764984]
[1766152130710,1.17961282,848.46,847.32,0.8764984]
[1766152130914,1.17042425,848.45,847.32,0.8764984]
[1766152131113,1.17042425,848.44,847.32,0.8764984]
[1766152131314,1.17042425,848.43,847.35,0.8764984]
[1766152132415,2.35003707,848.43,847.35,0.8764984]
[1766152132616,1.17042425,848.42,847.35,0.8764984]
[1766152133215,1.17042425,848.42,847.36,0.8764984]
[1766152134117,1.17227462,848.41,847.36,0.8764984]
[1766152134315,1.17227462,848.4,847.37,0.8764984]
[1766152134511,1.17227462,848.39,847.37,0.8764984]
[1766152134713,1.17227462,848.38,847.37,0.8764984]
[1766152134915,1.17227462,848.37,847.37,0.8764984]
[1766152135114,1.17227462,848.36,847.37,0.8764984]
[1766152135414,1.17227462,848.35,847.38,0.8764984]
[1766152135618,1.17227462,848.34,847.37,0.8764984]
[1766152135816,1.17227462,848.33,847.37,0.8764984]
[1766152136016,1.17227462,848.32,847.37,0.8764984]
[1766152136214,1.17227462,848.31,847.38,0.8764984]
[1766152136420,1.17227462,848.3,847.38,0.8764984]
[1766152136620,1.17227462,848.29,847.38,0.8764984]
[1766152136817,1.17227462,848.28,847.38,0.8764984]
[1766152137118,1.17227462,848.27,847.38,0.8764984]
[1766152137422,1.17227462,848.26,847.38,0.8764984]
[1766152137621,1.17227462,848.25,847.38,0.8764984]
[1766152137821,1.17227462,848.24,847.38,0.8764984]
[1766152138120,1.17227462,848.23,847.38,0.8764984]
[1766152138321,1.17227462,848.22,847.38,0.8764984]
[1766152138520,1.17227462,848.21,847.38,0.8764984]
[1766152138720,1.17227462,848.2,847.38,0.8764984]
[1766152138917,1.17227462,848.19,847.38,0.8764984]
[1766152139220,1.17227462,848.18,847.38,0.8764984]
[1766152139420,1.17227462,848.17,847.38,0.8764984]
[1766152139618,1.17227462,848.16,847.38,0.8764984]
[1766152139822,1.17961282,848.4,847.38,0.8764984]
[1766152140120,1.17302729,848.39,847.38,0.8764984]
[1766152140322,1.17302729,848.38,847.38,0.8764984]
[1766152140521,1.17302729,848.37,847.38,0.8764984]
[1766152140724,1.17302729,848.36,847.38,0.8764984]
[1766152141022,1.17302729,848.35,847.38,0.8764984]
[1766152141224,1.17302729,848.34,847.39,0.8764984]
[1766152141518,1.17302729,848.33,847.48,0.8764984]
[1766152141722,1.17302729,848.32,847.48,0.8764984]
[1766152141919,1.17302729,848.31,847.48,0.8764984]
[1766152142118,1.17302729,848.3,847.48,0.8764984]
[1766152142320,1.17302729,848.29,847.48,0.8764984]
[1766152142624,1.17302729,848.28,847.47,0.8764984]
[1766152142820,1.17302729,848.27,847.48,0.8764984]
[1766152143027,1.17961282,848.51,847.49,0.8764984]
[1766152143226,1.17275327,848.5,847.49,0.8764984]
[1766152143426,1.17275327,848.49,847.49,0.8764984]
[1766152143625,1.17275327,848.48,847.49,0.8764984]
[1766152143820,1.17275327,848.47,847.49,0.8764984]
[1766152144021,1.17275327,848.46,847.49,0.8764984]
[1766152144226,1.17275327,848.45,847.48,0.8764984]
[1766152144422,1.17275327,848.44,847.48,0.8764984]
[1766152144622,1.17275327,848.43,847.48,0.8764984]
[1766152144826,1.17275327,848.42,847.48,0.8764984]
[1766152145022,1.17275327,848.41,847.48,0.8764984]
[1766152145326,1.17275327,848.4,847.48,0.8764984]
[1766152145522,1.17275327,848.39,847.48,0.8764984]
[1766152145821,1.17275327,848.38,847.48,0.8764984]
[1766152146022,1.17275327,848.37,847.48,0.8764984]
[1766152146224,1.17275327,848.36,847.48,0.8764984]
[1766152146522,1.17275327,848.35,847.53,0.8764984]
[1766152146722,0.20512639,848.54,847.53,0.8764984]
[1766152146926,1.17228542,848.53,847.53,0.8764984]
[1766152147129,1.17228542,848.52,847.53,0.8764984]
[1766152147327,1.17228542,848.51,847.53,0.8764984]
[1766152147628,1.17228542,848.5,847.53,0.8764984]
[1766152147825,1.17228542,848.49,847.53,0.8764984]
[1766152148025,1.17228542,848.48,847.53,0.8764984]
[1766152148227,1.17228542,848.47,847.52,0.8764984]
[1766152148430,1.17228542,848.46,847.52,0.8764984]
[1766152148630,1.17228542,848.45,847.52,0.8764984]
[1766152148826,1.17228542,848.44,847.52,0.8764984]
[1766152149130,1.17228542,848.43,847.52,0.8764984]
[1766152149330,1.17228542,848.42,847.52,0.8764984]
[1766152149530,0.20512639,848.54,847.57,0.8764984]
[1766152149730,1.17171362,848.53,847.57,0.8764984]
[1766152149926,1.17171362,848.52,847.57,0.8764984]
[1766152150132,1.17171362,848.51,847.57,0.8764984]
[1766152150330,1.17171362,848.5,847.57,0.8764984]
[1766152150528,1.17171362,848.49,847.57,0.8764984]
[1766152150726,1.17171362,848.49,846.9,0.20511793]
[1766152150727,1.17171362,848.48,847.58,0.8764984]
[1766152150933,1.17171362,848.47,847.58,0.8764984]
[1766152151229,1.17171362,848.46,847.58,0.8764984]
[1766152151529,0.20512639,848.54,847.57,0.8764984]
[1766152151728,1.17119424,848.53,847.57,0.8764984]
[1766152151929,1.17119424,848.52,847.57,0.8764984]
[1766152152130,1.17119424,848.51,847.57,0.8764984]
[1766152152332,1.17119424,848.5,847.57,0.8764984]
[1766152152530,1.17119424,848.49,847.56,0.8764984]
[1766152152734,1.17119424,848.48,847.56,0.8764984]
[1766152153033,1.17119424,848.47,847.56,0.8764984]
[1766152153234,0.20512639,848.54,847.56,0.8764984]
[1766152153428,1.17093033,848.53,847.55,0.8764984]
[1766152153633,1.17093033,848.52,847.55,0.8764984]
[1766152153933,1.17093033,848.51,847.55,0.8764984]
[1766152154131,1.17093033,848.5,847.55,0.8764984]
[1766152154330,1.17093033,848.49,847.55,0.8764984]
[1766152154630,1.17093033,848.48,847.55,0.8764984]
[1766152154834,0.20512639,848.54,847.55,0.8764984]
[1766152155035,1.17056243,848.53,847.55,0.8764984]
[1766152155235,1.17056243,848.52,847.54,0.8764984]
[1766152155435,1.17056243,848.51,847.54,0.8764984]
[1766152155632,1.17056243,848.5,847.54,0.8764984]
[1766152155832,1.17056243,848.49,847.54,0.8764984]
[1766152156036,0.20512639,848.54,847.54,0.8764984]
[1766152156236,1.17038395,848.53,847.54,0.8764984]
[1766152156436,1.17038395,848.52,847.53,0.8764984]
[1766152156633,1.17038395,848.51,847.53,0.8764984]
[1766152156837,1.17038395,848.5,847.53,0.8764984]
[1766152157137,0.20512639,848.54,847.53,0.8764984]
[1766152157338,1.17017777,848.53,847.53,0.8764984]
[1766152157537,1.17017777,848.52,847.53,0.8764984]
[1766152157836,1.17017777,848.51,847.53,0.8764984]
[1766152158034,1.17017777,848.5,847.53,0.8764984]
[1766152158239,0.20512639,848.54,847.53,0.8764984]
[1766152158438,1.17002122,848.53,847.52,0.8764984]
[1766152158637,1.17002122,848.52,847.52,0.8764984]
[1766152158834,1.17002122,848.51,847.52,0.8764984]
[1766152159038,0.20512639,848.54,847.52,0.8764984]
[1766152159238,1.16991698,848.53,847.52,0.8764984]
[1766152159438,1.16991698,848.52,847.52,0.8764984]
[1766152159638,1.16991698,848.51,847.52,0.8764984]
[1766152159939,0.20512639,848.54,847.52,0.8764984]
[1766152160140,1.16978106,848.53,847.52,0.8764984]
[1766152160341,1.16978106,848.52,847.52,0.8764984]
[1766152160641,0.20512639,848.54,847.51,0.8764984]
[1766152160842,1.16965421,848.53,847.51,0.8764984]
[1766152161041,1.16965421,848.52,847.51,0.8764984]
[1766152161241,0.20512639,848.54,847.51,0.8764984]
[1766152161438,1.16961081,848.53,847.51,0.8764984]
[1766152161639,1.16961081,848.52,847.49,0.8764984]
[1766152161842,1.16961081,848.51,847.49,0.8764984]
[1766152162042,1.16961081,848.5,847.49,0.8764984]
[1766152162243,0.20512639,848.54,847.49,0.8764984]
[1766152162442,1.16952814,848.53,847.48,0.8764984]
[1766152162738,1.16952814,848.52,847.48,0.8764984]
[1766152162942,1.16952814,848.51,847.48,0.8764984]
[1766152163139,0.20512639,848.54,847.48,0.8764984]
[1766152163344,1.16943953,848.53,847.48,0.8764984]
[1766152163543,1.16943953,848.52,847.48,0.8764984]
[1766152163744,1.16943953,848.51,847.48,0.8764984]
[1766152163945,0.20512639,848.54,847.48,0.8764984]
[1766152164139,1.16940059,848.53,847.48,0.8764984]
[1766152164343,1.16940059,848.52,847.48,0.8764984]
[1766152164745,1.16940059,848.51,847.48,0.8764984]
[1766152165045,0.20512639,848.54,847.48,0.8764984]
[1766152165346,1.16932349,848.53,847.48,0.8764984]
[1766152165546,1.16932349,848.52,847.48,0.8764984]
[1766152165743,1.16932349,848.51,847.48,0.8764984]
[1766152165944,0.20512639,848.54,847.48,0.8764984]
[1766152166146,1.16925338,848.53,847.47,0.8764984]
[1766152166442,1.16925338,848.52,847.47,0.8764984]
[1766152166746,1.16925338,848.51,847.47,0.8764984]
[1766152166942,0.20512639,848.54,847.47,0.8764984]
[1766152167146,1.16918832,848.53,847.47,0.8764984]
[1766152167342,1.16918832,848.52,847.47,0.8764984]
[1766152167546,0.20512639,848.54,847.47,0.8764984]
[1766152167743,1.16912813,848.53,847.47,0.8764984]
[1766152168043,1.16912813,848.52,847.47,0.8764984]
[1766152168348,0.20512639,848.54,847.47,0.8764984]
[1766152168547,1.16907257,848.53,847.47,0.8764984]
[1766152168847,1.16907257,848.52,847.47,0.8764984]
[1766152169045,0.20512639,848.54,847.47,0.8764984]
[1766152169249,1.16907252,848.53,847.47,0.8764984]
[1766152169445,1.16907252,848.52,847.47,0.8764984]
[1766152169650,0.20512639,848.54,847.47,0.8764984]
[1766152169850,1.16902161,848.53,847.47,0.8764984]
[1766152170043,1.16902161,848.52,847.47,0.8764984]
[1766152170248,0.20512639,848.54,847.47,0.8764984]
[1766152170445,1.16899759,848.53,847.47,0.8764984]
[1766152170651,1.16899759,848.52,847.47,0.8764984]
[1766152170846,0.20512639,848.54,847.47,0.8764984]
[1766152171150,1.16899759,848.53,847.47,0.8764984]
[1766152171351,1.16899759,848.52,847.47,0.8764984]
[1766152171550,0.20512639,848.54,847.47,0.8764984]
[1766152171750,1.16902519,848.53,847.47,0.8764984]
[1766152171951,0.20512639,848.54,847.47,0.8764984]
[1766152171952,1.16902519,848.52,847.47,0.8764984]
[1766152172146,0.20512639,848.54,847.47,0.8764984]
[1766152172348,1.16905995,848.53,847.47,0.8764984]
[1766152172546,1.16905995,848.52,847.47,0.8764984]
[1766152172749,0.20512639,848.54,847.47,0.8764984]
[1766152172949,1.16906203,848.53,847.47,0.8764984]
[1766152173245,1.16906203,848.52,847.47,0.8764984]
[1766152173447,0.20512639,848.54,847.47,0.8764984]
[1766152173650,1.16910823,848.53,847.47,0.8764984]
[1766152173851,1.16910823,848.52,847.47,0.8764984]
[1766152174051,0.20512639,848.54,847.47,0.8764984]
[1766152174352,1.16915599,848.53,847.47,0.8764984]
[1766152174550,1.16915599,848.52,847.47,0.8764984]
[1766152174750,0.20512639,848.54,847.47,0.8764984]
[1766152174950,1.1691641,848.53,847.47,0.8764984]
[1766152175152,1.1691641,848.52,847.48,0.8764984]
[1766152175353,1.1691641,848.51,847.48,0.8764984]
[1766152175648,0.20512639,848.54,847.48,0.8764984]
[1766152175853,1.16922973,848.53,847.48,0.8764984]
[1766152176054,1.16922973,848.52,847.48,0.8764984]
[1766152176356,1.16922973,848.51,847.48,0.8764984]
[1766152176553,0.20512639,848.54,847.48,0.8764984]
[1766152176752,1.16930573,848.53,847.48,0.8764984]
[1766152177053,1.16930573,848.52,847.48,0.8764984]
[1766152177253,1.16930573,848.51,847.48,0.8764984]
[1766152177450,0.20512639,848.54,847.48,0.8764984]
[1766152177649,1.16939249,848.53,847.48,0.8764984]
[1766152177850,0.20512639,848.54,847.48,0.8764984]
[1766152177851,1.16939249,848.52,847.48,0.8764984]
[1766152178054,1.16939249,848.51,847.48,0.8764984]
[1766152178254,1.16947331,848.5,847.48,0.8764984]
[1766152178455,0.20512639,848.54,847.49,0.8764984]
[1766152178651,1.16949044,848.53,847.49,0.8764984]
[1766152178856,1.16949044,848.52,847.49,0.8764984]
[1766152179052,1.16949044,848.51,847.49,0.8764984]
[1766152179256,1.16949044,848.5,847.49,0.8764984]
[1766152179457,0.20512639,848.54,847.49,0.8764984]
[1766152179658,1.16960022,848.53,847.49,0.8764984]
[1766152179854,1.16960022,848.52,847.49,0.8764984]
[1766152180054,1.16960022,848.51,847.49,0.8764984]
[1766152180257,1.16960022,848.5,847.49,0.8764984]
[1766152180455,0.20512639,848.54,847.49,0.8764984]
[1766152180660,1.16972252,848.53,847.49,0.8764984]
[1766152180856,0.20512639,848.54,847.49,0.8764984]
[1766152180857,1.16972252,848.52,847.49,0.8764984]
[1766152181060,1.16972252,848.51,847.49,0.8764984]
[1766152181361,1.16972252,848.5,847.5,0.8764984]
[1766152181556,1.16972252,848.49,847.5,0.8764984]
[1766152181760,0.20512639,848.54,847.5,0.8764984]
[1766152181958,1.16985835,848.53,847.5,0.8764984]
[1766152182256,1.16985835,848.52,847.5,0.8764984]
[1766152182461,1.16985835,848.51,847.5,0.8764984]
[1766152182661,1.16985835,848.5,847.5,0.8764984]
[1766152182857,1.16985835,848.49,847.5,0.8764984]
[1766152183062,1.16985835,848.48,847.5,0.8764984]
[1766152183363,1.16985835,848.48,847.35,1.17500927]
[1766152183364,0.20512639,848.54,847.51,0.8764984]
[1766152183662,1.17017487,848.53,847.51,0.8764984]
[1766152183858,1.17017487,848.52,847.51,0.8764984]
[1766152184161,1.17017487,848.51,847.51,0.8764984]
[1766152184362,1.17017487,848.5,847.52,0.8764984]
[1766152184561,1.17017487,848.49,847.52,0.8764984]
[1766152184762,1.17017487,848.48,847.52,0.8764984]
[1766152185062,1.17017487,848.47,847.52,0.8764984]
[1766152185261,0.20512639,848.54,847.52,0.8764984]
[1766152185458,1.17056233,848.53,847.52,0.8764984]
[1766152185663,1.17056233,848.52,847.52,0.8764984]
[1766152185862,1.17056233,848.51,847.52,0.8764984]
[1766152186062,1.17056233,848.5,847.53,0.8764984]
[1766152186262,1.17056233,848.49,847.53,0.8764984]
[1766152186562,1.17056233,848.48,847.53,0.8764984]
[1766152186862,1.17056233,848.47,847.53,0.8764984]
[1766152187061,1.17056233,848.46,847.53,0.8764984]
[1766152187261,1.17056233,848.45,847.54,0.8764984]
[1766152187462,0.20512639,848.54,847.54,0.8764984]
[1766152187664,1.17104163,848.53,847.54,0.8764984]
[1766152187963,1.17104163,848.52,847.54,0.8764984]
[1766152188260,1.17104163,848.51,847.55,0.8764984]
[1766152188465,1.17104163,848.5,847.55,0.8764984]
[1766152188663,1.17104163,848.49,847.55,0.8764984]
[1766152188862,1.17104163,848.48,847.55,0.8764984]
[1766152189064,1.17104163,848.47,847.55,0.8764984]
[1766152189362,1.17104163,848.46,847.56,0.8764984]
[1766152189564,1.17104163,848.45,847.56,0.8764984]
[1766152189860,1.17104163,848.44,847.56,0.8764984]
[1766152190062,1.17104163,848.43,847.56,0.8764984]
[1766152190265,0.20512639,848.54,847.56,0.8764984]
[1766152190461,1.17152281,848.53,847.56,0.8764984]
[1766152190665,1.17152281,848.52,847.56,0.8764984]
[1766152190864,1.17152281,848.51,847.56,0.8764984]
[1766152191065,1.17152281,848.5,847.56,0.8764984]
[1766152191266,1.17152281,848.49,847.56,0.8764984]
[1766152191462,1.17152281,848.48,847.57,0.8764984]
[1766152191666,1.17152281,848.47,847.57,0.8764984]
[1766152191961,1.17152281,848.46,847.57,0.8764984]
[1766152192266,1.17152281,848.45,847.57,0.8764984]
[1766152192461,1.17152281,848.44,847.57,0.8764984]
[1766152192661,1.17152281,848.43,847.57,0.8764984]
[1766152192866,1.17152281,848.42,847.57,0.8764984]
[1766152193067,0.20512639,848.54,847.57,0.8764984]
[1766152193266,1.17193695,848.53,847.58,0.8764984]
[1766152193465,1.17193695,848.52,847.58,0.8764984]
[1766152193664,1.17193695,848.51,847.58,0.8764984]
[1766152193864,1.17193695,848.5,847.58,0.8764984]
[1766152194062,1.17193695,848.49,847.58,0.8764984]
[1766152194369,1.17193695,848.48,847.58,0.8764984]
[1766152194668,1.17193695,848.47,847.58,0.8764984]
[1766152194867,1.17193695,848.46,847.58,0.8764984]
[1766152195067,1.17193695,848.45,847.58,0.8764984]
[1766152195267,1.17193695,848.44,847.59,0.8764984]
[1766152195468,1.17193695,848.43,847.59,0.8764984]
[1766152195667,1.17193695,848.42,847.59,0.8764984]
[1766152195867,1.17193695,848.41,847.59,0.8764984]
[1766152196064,1.17193695,848.4,847.59,0.8764984]
[1766152196266,0.20512639,848.54,847.6,0.8764984]
[1766152196564,1.17251025,848.53,847.6,0.8764984]
[1766152196763,1.17251025,848.52,847.6,0.8764984]
[1766152196969,1.17251025,848.51,847.6,0.8764984]
[1766152197170,1.17251025,848.5,847.6,0.8764984]
[1766152197369,0.20517961,848.3,847.61,0.8764984]
[1766152198166,0.20517961,848.3,847.62,0.8764984]
[1766152199166,0.20517961,848.3,847.63,0.8764984]
[1766152202376,0.20517961,848.3,847.64,0.8764984]
[1766152204476,0.20517961,848.3,847.65,0.8764984]
[1766152205878,1.17961282,848.57,847.65,0.8764984]
[1766152206177,0.20516267,848.39,847.66,0.8764984]
[1766152206374,1.17414943,848.38,847.66,0.8764984]
[1766152206573,1.17414943,848.38,847.68,0.8764984]
[1766152206775,1.17414943,848.38,847.71,0.8764984]
[1766152207177,0.20516267,848.39,847.73,0.8764984]
[1766152207474,0.20516267,848.39,847.72,0.8764984]
[1766152207880,0.20516267,848.39,847.76,0.8764984]
[1766152208376,53.72936251,848.62,847.76,0.8764984]
[1766152208577,0.20513969,848.5,847.76,0.8764984]
[1766152208777,1.1741535,848.49,847.76,0.8764984]
[1766152208981,1.1741535,848.48,847.76,0.8764984]
[1766152209179,1.1741535,848.47,847.76,0.8764984]
[1766152209379,1.1741535,848.46,847.76,0.8764984]
[1766152209579,1.1741535,848.45,847.76,0.8764984]
[1766152209780,1.1741535,848.44,847.76,0.8764984]
[1766152209981,0.20513969,848.5,847.76,0.8764984]
[1766152210177,1.17405651,848.49,847.76,0.8764984]
[1766152210377,1.17405651,848.48,847.75,0.8764984]
[1766152210578,1.17405651,848.47,847.75,0.8764984]
[1766152210879,1.17405651,848.46,847.75,0.8764984]
[1766152211182,1.17405651,848.45,847.75,0.8764984]
[1766152211385,0.20513969,848.5,847.75,0.8764984]
[1766152211580,1.17381245,848.49,847.75,0.8764984]
[1766152211783,1.17381245,848.48,847.75,0.8764984]
[1766152212080,0.20513969,848.5,847.85,0.8764984]
[1766152212279,0.20513969,848.5,847.84,0.8764984]
[1766152213386,0.20513969,848.5,847.82,0.8764984]
[1766152213886,0.20513969,848.5,847.83,0.8764984]
[1766152214383,53.72936251,848.62,847.83,0.8764984]
[1766152214582,0.20512397,848.6,847.83,0.8764984]
[1766152215383,0.20512397,848.6,847.82,0.8764984]
[1766152216384,0.20512397,848.6,847.81,0.8764984]
[1766152217485,0.20512397,848.6,847.8,0.8764984]
[1766152219292,0.20512397,848.6,847.79,0.8764984]
[1766152221288,0.20512397,848.6,847.78,0.8764984]